{"text_format":"1","workbook":"xlsx","n_sheets":3,"sheets":["Plan1","Plan2","Plan3"],"not_rendered":{"charts":0,"images":0,"macros":1,"external_links":0,"defined_names":0,"comments":0,"pivot_tables":0},"unopened":[],"bounds":{"document_bytes":16777216,"sheet_cells":100000,"rows_first":2000,"rows_last":500,"rows_between":2000,"halvings":0,"cell_chars":16384,"cell_head_chars":4096},"cells_cut":0,"cells_raw":0,"read":"whole","date_system":"1900"}

{"sheet":"Plan1","index":0,"n_rows":49,"n_cols":38,"rows_kept":49,"cut":false,"hidden":false,"merged":[[0,0,0,35],[1,24,1,35],[8,30,10,30],[8,31,10,31],[1,0,1,23],[8,0,8,4],[8,32,10,32],[11,1,11,5],[12,1,12,5],[13,1,13,5],[14,1,14,5],[9,0,9,4],[24,1,24,5],[25,1,25,5],[15,1,15,5],[16,1,16,5],[17,1,17,5],[35,1,35,5],[36,1,36,5],[26,1,26,5],[27,1,27,5],[28,1,28,5],[29,1,29,5],[47,1,47,5],[48,1,48,5],[37,1,37,5],[38,1,38,5],[39,1,39,5],[40,1,40,5],[42,1,42,5],[43,1,43,5],[44,1,44,5],[45,1,45,5],[46,1,46,5],[10,1,10,5],[11,34,11,35],[19,34,19,35],[27,34,27,35],[41,1,41,5],[30,1,30,5],[31,1,31,5],[32,1,32,5],[33,1,33,5],[34,1,34,5],[18,1,18,5],[19,1,19,5],[20,1,20,5],[21,1,21,5],[22,1,22,5],[23,1,23,5]]}
["PLANILHA DE RESULTADOS DE PROVA "]
["Turma:__________________________   Disciplina: Língua Portuguesa Data:____/____/________",null,null,null,null,null,null,null,null,null,null,null,null,null,null,null,null,null,null,null,null,null,null,null,"Professor(a):____________________________________",null,null,null,null,null,null,null,null,null,null,null,null," "]
[]
[]
[null,null,null,null,null,null,null,null,null,null,null,null,null,null,null,null,null,null,null,null,null,null,null,null,null,null,null,null,null,null,null,null,null,null,null,null,6]
[]
[]
[]
["PREENCHER GABARITO DA PROVA",null,null,null,null,null,"A","C","D","A","A","B","D","A","C","B","A","D","E","B","C","A","D","B","C","A","B","A","A","C","ACERTOS","PORC.","SITUAÇÃO"]
["PREENCHER DESCRITORES/ QUESTÃO"]
["Nº","ALUNOS",null,null,null,null,1,2,3,4,5,6,7,8,9,10,11,12,13,14,15,16,17,18,19,20,21,22,23,24]
[1,"ALINE",null,null,null,null,"A","C","B","A","A","C","A","A","C","B","A","B","B","C","A","A","D","C","A","A","B","D","A","C",14,{"$f":"IF(AE12=\"\",\"\",(AE12*100)/24)","v":58.333333333333336},{"$f":"IF(AE12<=14,\"CRÍTICO\",IF(AE12>=20,\"ADEQUADO\",\"INTERMEDIÁRIO\"))","v":"CRÍTICO"},null,"SITUAÇÃO ALUNOS"]
[2,"AMANDA",null,null,null,null,"A","A","A","A","A","A","A","A","A","A","A","A","A","A","A","A","A","A","A","A","A","A","A","A",9,{"$f":"IF(AE13=\"\",\"\",(AE13*100)/24)","v":37.5},{"$f":"IF(AE13<=14,\"CRÍTICO\",IF(AE13>=20,\"ADEQUADO\",\"INTERMEDIÁRIO\"))","v":"CRÍTICO"},null,"ADEQUADO",{"$f":"COUNTIF(AG12:AG49,\"ADEQUADO\")","v":1}]
[3,"BERNARDO",null,null,null,null,"A","C","D","A","A","B","D","A","C","B","A","D","E","B","C","A","D","B","C","A","B","A","A","C",24,100,"ADEQUADO",null,"INTERMEDIÁRIO",{"$f":"COUNTIF(AG12:AG49,\"INTERMEDIÁRIO\")","v":0}]
[4,"Aluno Teste",null,null,null,null,null,"C","E","A","B","B","D","C","C","D","A","B","E","C","C","D","D","E","C","E","B","B","A",null,12,50,"CRÍTICO",null,"CRÍTICO",{"$f":"COUNTIF(AG12:AG49,\"CRÍTICO\")","v":37}]
[6,null,null,null,null,null,null,null,null,null,null,null,null,null,null,null,null,null,null,null,null,null,null,null,null,null,null,null,null,null,null,"","CRÍTICO",null,"TOTAL",37]
[7,null,null,null,null,null,null,null,null,null,null,null,null,null,null,null,null,null,null,null,null,null,null,null,null,null,null,null,null,null,null,"","CRÍTICO"]
[8,null,null,null,null,null,null,null,null,null,null,null,null,null,null,null,null,null,null,null,null,null,null,null,null,null,null,null,null,null,null,"","CRÍTICO"]
[9,null,null,null,null,null,null,null,null,null,null,null,null,null,null,null,null,null,null,null,null,null,null,null,null,null,null,null,null,null,null,"","CRÍTICO"]
[10,null,null,null,null,null,null,null,null,null,null,null,null,null,null,null,null,null,null,null,null,null,null,null,null,null,null,null,null,null,null,"","CRÍTICO",null,"DESCRITORES"]
[11,null,null,null,null,null,null,null,null,null,null,null,null,null,null,null,null,null,null,null,null,null,null,null,null,null,null,null,null,null,null,"","CRÍTICO",null,"81 A 100%",{"$f":"COUNTIF(AG12:AG49,\"ADEQUADO\")","v":1}]
[12,null,null,null,null,null,null,null,null,null,null,null,null,null,null,null,null,null,null,null,null,null,null,null,null,null,null,null,null,null,null,"","CRÍTICO",null,"61 A 80%",{"$f":"COUNTIF(AG12:AG49,\"INTERMEDIÁRIO\")","v":0}]
[13,null,null,null,null,null,null,null,null,null,null,null,null,null,null,null,null,null,null,null,null,null,null,null,null,null,null,null,null,null,null,"","CRÍTICO",null,"01 A 60%",{"$f":"COUNTIF(AG12:AG49,\"CRÍTICO\")","v":37}]
[14,null,null,null,null,null,null,null,null,null,null,null,null,null,null,null,null,null,null,null,null,null,null,null,null,null,null,null,null,null,null,"","CRÍTICO",null,"TOTAL",{"$f":"SUM(AJ21:AJ23)","v":38}]
[15,null,null,null,null,null,null,null,null,null,null,null,null,null,null,null,null,null,null,null,null,null,null,null,null,null,null,null,null,null,null,"","CRÍTICO"]
[16,null,null,null,null,null,null,null,null,null,null,null,null,null,null,null,null,null,null,null,null,null,null,null,null,null,null,null,null,null,null,"","CRÍTICO"]
[17,null,null,null,null,null,null,null,null,null,null,null,null,null,null,null,null,null,null,null,null,null,null,null,null,null,null,null,null,null,null,"","CRÍTICO"]
[18,null,null,null,null,null,null,null,null,null,null,null,null,null,null,null,null,null,null,null,null,null,null,null,null,null,null,null,null,null,null,"","CRÍTICO",null,"LEGENDA"]
[19,null,null,null,null,null,null,null,null,null,null,null,null,null,null,null,null,null,null,null,null,null,null,null,null,null,null,null,null,null,null,"","CRÍTICO",null,"ADEQUADO"]
[20,null,null,null,null,null,null,null,null,null,null,null,null,null,null,null,null,null,null,null,null,null,null,null,null,null,null,null,null,null,null,"","CRÍTICO",null,"INTERMEDIÁRIO"]
[21,null,null,null,null,null,null,null,null,null,null,null,null,null,null,null,null,null,null,null,null,null,null,null,null,null,null,null,null,null,null,"","CRÍTICO",null,"CRITICO"]
[23,null,null,null,null,null,null,null,null,null,null,null,null,null,null,null,null,null,null,null,null,null,null,null,null,null,null,null,null,null,null,"","CRÍTICO"]
[24,null,null,null,null,null,null,null,null,null,null,null,null,null,null,null,null,null,null,null,null,null,null,null,null,null,null,null,null,null,null,"","CRÍTICO"]
[25,null,null,null,null,null,null,null,null,null,null,null,null,null,null,null,null,null,null,null,null,null,null,null,null,null,null,null,null,null,null,"","CRÍTICO"]
[26,null,null,null,null,null,null,null,null,null,null,null,null,null,null,null,null,null,null,null,null,null,null,null,null,null,null,null,null,null,null,"","CRÍTICO"]
[27,null,null,null,null,null,null,null,null,null,null,null,null,null,null,null,null,null,null,null,null,null,null,null,null,null,null,null,null,null,null,"","CRÍTICO"]
[28,null,null,null,null,null,null,null,null,null,null,null,null,null,null,null,null,null,null,null,null,null,null,null,null,null,null,null,null,null,null,"","CRÍTICO"]
[29,null,null,null,null,null,null,null,null,null,null,null,null,null,null,null,null,null,null,null,null,null,null,null,null,null,null,null,null,null,null,"","CRÍTICO"]
[30,null,null,null,null,null,null,null,null,null,null,null,null,null,null,null,null,null,null,null,null,null,null,null,null,null,null,null,null,null,null,"","CRÍTICO"]
[31,null,null,null,null,null,null,null,null,null,null,null,null,null,null,null,null,null,null,null,null,null,null,null,null,null,null,null,null,null,null,"","CRÍTICO"]
[32,null,null,null,null,null,null,null,null,null,null,null,null,null,null,null,null,null,null,null,null,null,null,null,null,null,null,null,null,null,null,"","CRÍTICO"]
[33,null,null,null,null,null,null,null,null,null,null,null,null,null,null,null,null,null,null,null,null,null,null,null,null,null,null,null,null,null,null,"","CRÍTICO"]
[34,null,null,null,null,null,null,null,null,null,null,null,null,null,null,null,null,null,null,null,null,null,null,null,null,null,null,null,null,null,null,"","CRÍTICO"]
[35,null,null,null,null,null,null,null,null,null,null,null,null,null,null,null,null,null,null,null,null,null,null,null,null,null,null,null,null,null,null,"","CRÍTICO"]
[36,null,null,null,null,null,null,null,null,null,null,null,null,null,null,null,null,null,null,null,null,null,null,null,null,null,null,null,null,null,null,"","CRÍTICO"]
[37,null,null,null,null,null,null,null,null,null,null,null,null,null,null,null,null,null,null,null,null,null,null,null,null,null,null,null,null,null,null,"","CRÍTICO"]
[38,null,null,null,null,null,null,null,null,null,null,null,null,null,null,null,null,null,null,null,null,null,null,null,null,null,null,null,null,null,null,"","CRÍTICO"]
[39,null,null,null,null,null,null,null,null,null,null,null,null,null,null,null,null,null,null,null,null,null,null,null,null,null,null,null,null,null,null,"","CRÍTICO"]
[40,null,null,null,null,null,null,null,null,null,null,null,null,null,null,null,null,null,null,null,null,null,null,null,null,null,null,null,null,null,null,"","CRÍTICO"]

{"sheet":"Plan2","index":1,"n_rows":0,"n_cols":0,"rows_kept":0,"cut":false,"hidden":false,"merged":[]}

{"sheet":"Plan3","index":2,"n_rows":0,"n_cols":0,"rows_kept":0,"cut":false,"hidden":false,"merged":[]}